Cogmind - Beta 14 @@@ ROGUE MODE // 2024.12.31 @ 23:39:07 Player: Beef Result: Destroyed by Y-54 Guardian with Flak Gun Performance ------------- Evolutions (4) 2000 Regions Visited (13) 2600 Robots Destroyed (128) 640 Value Destroyed (4029) 4029 Prototype IDs (15) 300 Alien Tech Used (0) 0 Bonus (534) 534 TOTAL SCORE: 10103 Bonus ------- Follower Combat Kills 783 Friendly Fire -249 Cogmind --------- Core Integrity 0/850 Matter 146/300 Energy 115/325 System Corruption 2% Temperature Cool (6) Movement Treading (160) Location -6/Factory Parts ------- > --- POWER (1) -------- Antimatter Reactor > --- PROPULSION (4) --- Heavy Treads Heavy Treads > --- UTILITY (8) ------ Large Storage Unit Advanced Signal Interpreter Hardened Medium Armor Plating Improved Light Armor Plating Improved Shield Generator > --- WEAPON (2) ------- Heavy Battle Rifle Improved Heavy Machine Gun > --- INVENTORY (15) --- Antimatter Reactor Carbon-fiber Leg Flexi-carbon Leg Advanced Heat Sink Advanced Heat Sink Matter Compressor (250) Machine Analyzer Experimental Sensor Array Dispersion Rifle Heavy Plasma Cannon Peak State ------------ > --- POWER ------------ Antimatter Reactor > --- PROPULSION ------- Heavy Treads Heavy Treads > --- UTILITY ---------- Advanced Heat Sink Experimental Optical Array Hardened Medium Armor Plating Hardened Medium Armor Plating Damper Plating > --- WEAPON ----------- Heavy Battle Rifle Improved Heavy Machine Gun > --- INVENTORY -------- Antimatter Reactor Matter Compressor Transmission Jammer Improved Phase Shifter Dispersion Rifle [Rating: 87] Favorites ----------- Power Heavy Deuterium Engine Engine Heavy Deuterium Engine Power Core Micro Nuclear Core Reactor Antimatter Reactor Propulsion Aluminum Leg Treads Heavy Treads Leg Aluminum Leg Wheel Wheel Flight Unit Cesium-ion Thruster Utility Large Storage Unit Device Structural Scanner Storage Large Storage Unit Processor Improved Signal Interpreter Hackware System Shield Protection Hardened Medium Armor Plating Weapon Heavy Beamcaster Energy Gun Heavy Beamcaster Ballistic Gun Heavy Battle Rifle Ballistic Cannon Battle Cannon Launcher Grenade Launcher Slashing Weapon Chainsword Build | -11 -10 -10 -10 -9 -8 -7 -7 -7 -7 -7 -6 -6 -6 ------- Run | Yrd Mat Min Exi Min Mat Fac Was Fac Low Low Fac Was Fac Slots Evolved 8 | . . . . . 4 2 . . . . 2 . . Power . | . . . . . . . . . . . . . . Propulsion 2 | . . . . . 2 . . . . . . . . Utility 6 | . . . . . 2 2 . . . . 2 . . Weapon . | . . . . . . . . . . . . . . Parts Attached 184 | 7 . 6 1 . 36 39 6 . 4 15 31 19 20 Power 13 | 1 . 2 . . 3 1 . . . 1 2 3 . Engine 9 | 1 . 2 . . 3 1 . . . 1 1 . . Core 1 | . . . . . . . . . . . 1 . . Reactor 3 | . . . . . . . . . . . . 3 . Propulsion 53 | 2 . . . . 11 13 1 . 4 9 10 2 1 Treads 3 | . . . . . . . . . . . . 2 1 Leg 43 | 2 . . . . 9 9 1 . 4 9 9 . . Wheel 6 | . . . . . 2 4 . . . . . . . Hover . | . . . . . . . . . . . . . . Flight 1 | . . . . . . . . . . . 1 . . Utility 64 | 2 . 3 1 . 7 7 2 . . 3 12 9 18 Device 31 | 1 . 2 . . 3 4 . . . 2 8 4 7 Storage 5 | 1 . . 1 . . . . . . . . . 3 Processor 6 | . . . . . 1 3 . . . . . 1 1 Hackware 2 | . . . . . . . 1 . . . 1 . . Protection 20 | . . 1 . . 3 . 1 . . 1 3 4 7 Artifact . | . . . . . . . . . . . . . . Weapon 54 | 2 . 1 . . 15 18 3 . . 2 7 5 1 Energy Gun 31 | 1 . . . . 6 11 3 . . 2 6 2 . Energy Cannon . | . . . . . . . . . . . . . . Ballistic Gun 11 | 1 . . . . 6 1 . . . . . 2 1 Ballistic Cannon 2 | . . 1 . . 1 . . . . . . . . Launcher 7 | . . . . . 1 4 . . . . 1 1 . Special Weapon . | . . . . . . . . . . . . . . Impact Weapon . | . . . . . . . . . . . . . . Slashing Weapon 3 | . . . . . 1 2 . . . . . . . Piercing Weapon . | . . . . . . . . . . . . . . Special Melee Weapon . | . . . . . . . . . . . . . . Unidentified Prototypes 12 | . . 1 . . 5 1 . . . . 1 2 2 Corrupted Parts 5 | . . . . . . . . . . 5 . . . System Corruption 13 | . . . . . . . . . . 13 . . . Parts Lost 60 | . . . . . 13 12 1 . . 9 21 . 4 Power 4 | . . . . . 1 1 . . . 1 1 . . Propulsion 24 | . . . . . 6 7 . . . 5 6 . . Utility 20 | . . . . . 3 2 . . . 2 9 . 4 Weapon 12 | . . . . . 3 2 1 . . 1 5 . . Highest Loss Streak 11 | . . . . . 3 3 1 . . 5 11 . 3 To Critical Strikes 2 | . . . . . . . . . . . 2 . . Average Slot Usage (%) 86 | . 100 99 100 100 91 86 97 100 100 97 94 51 68 Engine 6 | . 14 14 14 14 8 5 7 7 7 6 5 . . Reactor 1 | . . . . . . . . . . . . 5 6 Treads 3 | . . . . . . . . . . . . 12 12 Leg 20 | . 28 28 28 28 29 18 29 30 30 29 24 . . Wheel 1 | . . . . . 1 7 . . . . . . . Device 11 | . 14 2 . . 10 16 18 15 15 15 21 6 9 Storage 7 | . 14 14 14 14 9 7 7 7 7 7 5 . 4 Processor 6 | . . . . . 7 14 13 7 7 7 5 2 4 Hackware 2 | . . . . . . . 1 7 7 7 12 . . Protection 7 | . . 11 14 14 7 . 2 7 7 5 2 13 16 Energy Gun 7 | . 14 10 . . 7 10 13 15 15 14 12 . . Ballistic Gun 6 | . 14 14 14 14 6 1 . . . . . 9 13 Ballistic Cannon 1 | . . 3 14 14 3 . . . . . . . . Peak Build Rating 87 | 9 9 15 9 10 33 49 52 52 57 57 71 85 87 Average Rating 45 | 6 9 8 9 9 25 33 49 52 53 49 58 70 82 On Entrance 29 | . 9 9 9 9 10 25 49 52 52 57 45 5 84 Naked Turns 11 | . . . . . . . . . . . 11 . . Heaviest Build 102 | 12 12 17 32 32 43 42 51 51 51 58 57 88 102 Greatest Support 140 | 20 20 20 20 20 56 66 66 58 73 73 60 140 140 Greatest Overweight (x) 5 | . . . 1 1 3 4 . . . 5 3 . . Average Overweight (x) . | . . . . 1 . . . . . . . . . Largest Inventory Capacity 15 | 8 8 8 15 15 15 15 15 15 15 15 15 5 15 Average Capacity 12 | 7 8 8 13 15 15 15 15 15 15 15 14 5 10 Most Carried 15 | 1 4 8 8 9 15 15 15 15 15 15 15 5 15 Average Carried 10 | . 3 5 8 8 10 11 14 15 14 13 13 4 8 Final Capacity 15 | 8 8 8 15 15 15 15 15 15 15 15 5 5 15 Final Carried 15 | 1 4 8 8 9 13 14 15 15 15 13 5 4 10 Class Distribution -------------------- 47% | Scavenger-Mutant 27% | Mutant 9% | Scavenger-Skirmisher 6% | Skirmisher 5% | Scavenger-Assassin 3% | Hacker-Mutant Dominant Class ---------------- Mutant | -10/Materials Mutant | -10/Mines Mutant | -10/Exiles Mutant | -9/Mines Mutant | -8/Materials Scavenger-Mutant | -7/Factory Scavenger-Skirmisher | -7/Waste Scavenger-Skirmisher | -7/Factory Scavenger-Skirmisher | -7/Lower Caves Scavenger-Mutant | -7/Lower Caves Hacker-Mutant | -6/Factory Scavenger-Mutant | -6/Waste Scavenger-Mutant | -6/Factory Resources | -11 -10 -10 -10 -9 -8 -7 -7 -7 -7 -7 -6 -6 -6 ----------- Run | Yrd Mat Min Exi Min Mat Fac Was Fac Low Low Fac Was Fac Matter Collected 4070 | 212 . 156 . 64 908 490 95 10 40 375 318 235 1167 Remotely . | . . . . . . . . . . . . . . Salvage Created 4958 | 25 . 150 . 106 1054 717 . . 47 331 498 233 1797 Parts 266 | 4 . 20 . 12 69 42 . . 2 12 31 3 71 Haulers Intercepted 4 | . . . . . 3 1 . . . . . . . Recyclers Shooed 10 | . . . . . 1 3 . . . . 3 . 3 Parts Field Recycled . | . . . . . . . . . . . . . . Retrieved Matter . | . . . . . . . . . . . . . . Parts Self-Destructed 44 | . . . . . . . . . 28 16 . . . Prevented . | . . . . . . . . . . . . . . Kills | -11 -10 -10 -10 -9 -8 -7 -7 -7 -7 -7 -6 -6 -6 ------- Run | Yrd Mat Min Exi Min Mat Fac Was Fac Low Low Fac Was Fac Combat Hostiles Destroyed 90 | . . 8 . 4 19 19 . . 1 5 14 . 20 Melee 2 | . . . . . . 1 . . . . 1 . . Guns 71 | . . 8 . 2 17 10 . . 1 5 8 . 20 Cannons 3 | . . . . 2 1 . . . . . . . . AOE 13 | . . . . . 1 8 . . . . 4 . . Classes Destroyed 15 | 1 . 2 . 2 5 2 . . . . 2 . 1 Worker 10 | . . 1 . . 4 1 . . . . . . 4 Builder 8 | . . . . . 1 2 . . . . 1 . 4 Tunneler 2 | 1 . 1 . . . . . . . . . . . Hauler 4 | . . . . . 3 1 . . . . . . . Recycler 7 | . . . . . 2 2 . . . . . . 3 Mechanic 1 | . . . . . . . . . . . . . 1 Operator 2 | . . . . . . 1 . . . . . . 1 Watcher 4 | . . . . . 1 . . . . . . . 3 Swarmer 26 | . . 8 . 2 3 2 . . . . 6 . 5 Saboteur 1 | . . . . . . . . . . . 1 . . Grunt 42 | . . . . 1 10 16 . . . 3 1 . 11 Duelist 3 | . . . . 1 2 . . . . . . . . Sentry 8 | . . . . . 4 . . . . 1 2 . 1 Hunter 2 | . . . . . . . . . . . 2 . . Programmer 8 | . . . . . . 1 . . 1 1 2 . 3 Decomposer 1 | . . . . . . . . . . 1 . . . Best Kill Streak 7 | 1 . 3 . 2 6 7 . . 1 1 5 . 5 Combat Bots Only 6 | . . 3 . 2 6 5 . . 1 1 5 . 3 Max Kills in Single Turn 4 | 1 . 1 . 1 1 4 . . 1 1 1 . 2 Gunslinging 1 | . . . . . . . . . . . . . 1 Exploded 4 | . . . . . 1 4 . . . . 1 . . Melee 1 | . . . . . . 1 . . . . 1 . . Uniques/NPCs Destroyed . | . . . . . . . . . . . . . . Combat | -11 -10 -10 -10 -9 -8 -7 -7 -7 -7 -7 -6 -6 -6 -------- Run | Yrd Mat Min Exi Min Mat Fac Was Fac Low Low Fac Was Fac Hostile Shots Fired 1032 | . . 52 . 16 169 105 2 . . 110 332 . 246 Missed 347 | . . 21 . 9 47 37 1 . . 12 139 . 81 Damage Taken 9677 | . . 247 . 63 1852 1151 116 15 40 1656 2461 . 2076 Core 1560 | . . 37 . . 235 187 . 3 20 226 672 . 180 Absorbed by Shields 495 | . . . . . . . . . . . 109 . 386 Redirected to Shielding 43 | . . . . . . . . . . . . . 43 Ignored by Resistances 123 | . . . . . . . . . . . . . 123 Regen/Repaired (Parts) 583 | . . . . . . 11 . . 13 73 . . 486 Core Remaining (%) 69 | 100 . . . 85 57 . . . . 37 . . . Volleys Fired 449 | 2 . 21 . 9 107 65 3 . 1 62 53 6 120 Largest 2 | 2 . 2 . 2 2 2 2 . 2 2 2 2 2 Hottest 162 | 70 . 70 . 59 160 132 151 . 162 162 162 66 66 Shots Fired 833 | 4 . 42 . 18 196 115 6 . 2 100 97 13 240 Gun 766 | 4 . 39 . 9 157 103 6 . 2 100 93 13 240 Cannon 48 | . . 3 . 9 36 . . . . . . . . Launcher 19 | . . . . . 3 12 . . . . 4 . . Special . | . . . . . . . . . . . . . . Kinetic 425 | 2 . 24 . 18 112 16 . . . . . 13 240 Thermal 389 | 2 . 18 . . 81 87 6 . 2 100 93 . . Explosive 19 | . . . . . 3 12 . . . . 4 . . Electromagnetic . | . . . . . . . . . . . . . . Robot Hit Streak 14 | 1 . 4 . 5 14 9 7 . 1 13 8 10 11 Robot Miss Streak 11 | 1 . 6 . 4 5 11 . . 1 5 4 2 4 Penetration Max . | . . . . . . . . . . . . . . Secondary Targets 8 | . . 1 . . 1 . . . . 1 1 . 4 Max Gunslinging Chain 1 | . . 1 . . 1 . . . . 1 1 . 1 Shots Hit Robots 545 | 2 . 20 . 8 136 93 6 . 1 58 64 8 149 Core Hits 280 | 2 . 11 . 5 63 82 1 . 1 15 28 3 69 Critical Kills 1 | . . . . . 1 . . . . . . . . Critical Parts Destroyed 1 | . . . . . 1 . . . . . . . . Critical Strikes 14 | . . . . . 6 3 1 . . 3 1 . . Burn 9 | . . . . . 2 3 . . . 3 1 . . Destroy 3 | . . . . . 2 . 1 . . . . . . Blast 2 | . . . . . 2 . . . . . . . . Melee Attacks 8 | . . . . . 2 6 . . . . . . . Impact . | . . . . . . . . . . . . . . Slashing 8 | . . . . . 2 6 . . . . . . . Piercing . | . . . . . . . . . . . . . . Sneak Attacks 1 | . . . . . . 1 . . . . . . . Combat Hostiles . | . . . . . . . . . . . . . . Follow-up Attacks . | . . . . . . . . . . . . . . Damage Inflicted 12558 | 17 . 220 . 119 2456 2692 134 . 27 1328 1733 226 3606 Guns 10220 | 17 . 174 . 50 1914 1387 134 . 27 1328 1392 226 3571 Cannons 624 | . . 46 . 69 509 . . . . . . . . Explosions 1509 | . . . . . 33 1145 . . . . 331 . . Melee 146 | . . . . . . 146 . . . . . . . Ramming 59 | . . . . . . 14 . . . . 10 . 35 Kinetic 5559 | 17 . 131 . 119 1222 273 . . . . . 226 3571 Thermal 5310 | . . 89 . . 1201 1114 134 . 27 1328 1417 . . Explosive 1484 | . . . . . 33 1145 . . . . 306 . . Electromagnetic . | . . . . . . . . . . . . . . Impact . | . . . . . . . . . . . . . . Slashing 146 | . . . . . . 146 . . . . . . . Piercing . | . . . . . . . . . . . . . . Highest Corruption 13 | . . . . . 2 . . . . 13 6 6 2 Average Corruption 3 | . . . . . 2 . . . . 12 3 5 1 Corruption Purged 6 | . . . . . . . . . . . . 5 1 Corruption Blocked . | . . . . . . . . . . . . . . Effects 57 | . . . . . 9 . . . . 17 5 15 11 Message Errors 12 | . . . . . . . . . . 5 1 3 3 Matter Fused 16 | . . . . . 3 . . . . 5 1 5 2 Heat Flow Errors 8 | . . . . . 2 . . . . 1 . 2 3 Energy Discharges 5 | . . . . . 2 . . . . 1 . 1 1 Parts Rejected 1 | . . . . . . . . . . . 1 . . Parts Fused 1 | . . . . . 1 . . . . . . . . Data Loss (minor) 5 | . . . . . . . . . . 1 . 2 2 Data Loss (major) 3 | . . . . . 1 . . . . 1 1 . . Misfires 4 | . . . . . . . . . . 3 . 1 . Alerts 1 | . . . . . . . . . . . . 1 . Weapon Failures 1 | . . . . . . . . . . . 1 . . Overload Shots . | . . . . . . . . . . . . . . Overflow Damage 60 | . . . . . 14 33 . . . . 7 . 6 Projectiles 14 | . . . . . 14 . . . . . . . . Explosions 17 | . . . . . . 10 . . . . 7 . . Melee 29 | . . . . . . 23 . . . . . . 6 Knockbacks 10 | . . . . . 10 . . . . . . . . Impact . | . . . . . . . . . . . . . . Kinetic 10 | . . . . . 10 . . . . . . . . Secondary . | . . . . . . . . . . . . . . Self-Inflicted Damage 49 | . . . . . . 17 . . . . 32 . . Shots 4 | . . . . . . 2 . . . . 2 . . Rammed 2 | . . . . . . . . . . . . . 2 Targets Rammed 4 | . . . . . . 1 . . . . 1 . 2 Kicked 2 | . . . . . . 1 . . . . 1 . . Crushed . | . . . . . . . . . . . . . . Highest Temperature 607 | 40 . 148 . 70 475 108 81 . 96 607 450 383 218 Average Temperature 143 | 20 . 59 . 32 104 17 41 . 49 274 174 138 44 Received Heat Transfer 3002 | . . . . 18 711 567 . . 18 810 202 . 676 Effects 58 | . . . . . 7 . . . . 42 4 5 . Shutdowns 16 | . . . . . 2 . . . . 11 2 1 . Energy Bleed 6 | . . . . . 1 . . . . 4 . 1 . Interference 16 | . . . . . 3 . . . . 10 . 3 . Matter Decay 6 | . . . . . 1 . . . . 4 1 . . Short Circuit 5 | . . . . . . . . . . 5 . . . Damage (minor) 4 | . . . . . . . . . . 3 1 . . Damage (major) 4 | . . . . . . . . . . 4 . . . Damage (core) 1 | . . . . . . . . . . 1 . . . Siege Activations . | . . . . . . . . . . . . . . Robots Corrupted 1 | . . . . . . . . . . . . . 1 Combat Hostiles . | . . . . . . . . . . . . . . Parts Fried . | . . . . . . . . . . . . . . Impact Corruptions 1 | . . . . . . . . . . . . . 1 Robots Melted 1 | . . . . . . . . . . . 1 . . Combat Hostiles 1 | . . . . . . . . . . . 1 . . Parts Melted 18 | . . . . . 3 3 . . . 3 9 . . Heat Transferred 10308 | . . 259 . . 2840 2145 222 . 37 2368 2437 . . Parts Sabotaged 2 | . . . . . . . . . . . 2 . . Parts Stolen . | . . . . . . . . . . . . . . Parts Stripped . | . . . . . . . . . . . . . . Power Chain Reactions . | . . . . . . . . . . . . . . Alert | -11 -10 -10 -10 -9 -8 -7 -7 -7 -7 -7 -6 -6 -6 ------- Run | Yrd Mat Min Exi Min Mat Fac Was Fac Low Low Fac Was Fac Peak Influence 369 | 5 18 186 . 103 248 369 91 142 . . 215 . 308 Initial 112 | . 3 6 . . 39 112 56 . . . 39 . . Average 106 | 2 5 80 . 45 99 237 59 50 . . 54 . 126 Maximum Alert Level 1 | . . . . . 1 1 . . . . 1 . 1 Low Security (%) 79 | 100 100 100 . 100 93 15 100 100 . . 98 100 79 Level 1 20 | . . . . . 6 84 . . . . 1 . 20 Level 2 . | . . . . . . . . . . . . . . Level 3 . | . . . . . . . . . . . . . . Level 4 . | . . . . . . . . . . . . . . Level 5 . | . . . . . . . . . . . . . . High Security . | . . . . . . . . . . . . . . Max Security . | . . . . . . . . . . . . . . Squads Dispatched 18 | . 1 . . . 2 4 . . . . 4 . 7 Investigation 7 | . . . . . 2 1 . . . . 1 . 3 Extermination 5 | . . . . . . 1 . . . . 1 . 3 Reinforcement 6 | . 1 . . . . 2 . . . . 2 . 1 Assault . | . . . . . . . . . . . . . . Garrison . | . . . . . . . . . . . . . . Intercept . | . . . . . . . . . . . . . . Searches Triggered . | . . . . . . . . . . . . . . Construction Impeded 1 | . . . . . . . . . . . . . 1 Haulers Reinforced 1 | . . . . . . 1 . . . . . . . Active Scanning Responses . | . . . . . . . . . . . . . . Cargo Convoy Interrupts 1 | . . . . . . . . . . . 1 . . Stealth | -11 -10 -10 -10 -9 -8 -7 -7 -7 -7 -7 -6 -6 -6 --------- Run | Yrd Mat Min Exi Min Mat Fac Was Fac Low Low Fac Was Fac Distress Signals 3 | . . . . . 1 . . . . . 1 . 1 Communications Jammed . | . . . . . . . . . . . . . . Distress Signals . | . . . . . . . . . . . . . . Times Spotted 180 | . 3 9 . 5 30 32 6 3 9 14 33 . 36 Peak Tracking Total 10 | . 3 3 . 3 7 5 6 3 4 5 10 . 5 Tactical Retreats 10 | . . . . . 1 3 . . . 4 1 . 1 Traps | -11 -10 -10 -10 -9 -8 -7 -7 -7 -7 -7 -6 -6 -6 ------- Run | Yrd Mat Min Exi Min Mat Fac Was Fac Low Low Fac Was Fac Traps Triggered 5 | . . . . . 1 2 . . . . 2 . . Indirectly . | . . . . . . . . . . . . . . Trap Hack Attempts . | . . . . . . . . . . . . . . Triggered . | . . . . . . . . . . . . . . Disarmed . | . . . . . . . . . . . . . . Reprogrammed . | . . . . . . . . . . . . . . Reused . | . . . . . . . . . . . . . . Traps Extracted . | . . . . . . . . . . . . . . Installed . | . . . . . . . . . . . . . . Triggered 3 | . . . . . . . . . 2 1 . . . Machines | -11 -10 -10 -10 -9 -8 -7 -7 -7 -7 -7 -6 -6 -6 ---------- Run | Yrd Mat Min Exi Min Mat Fac Was Fac Low Low Fac Was Fac Machines Disabled 8 | . . . . . 1 . . 2 . 2 2 . 1 Max in Single Turn 1 | . . . . . 1 . . . . 1 1 . 1 Garrison Access 3 | . . . . . 1 1 . . . . 1 . . Machines Repaired . | . . . . . . . . . . . . . . Machines Dismantled . | . . . . . . . . . . . . . . Machines Sabotaged . | . . . . . . . . . . . . . . Overloaded Fab Kills . | . . . . . . . . . . . . . . Hacking | -11 -10 -10 -10 -9 -8 -7 -7 -7 -7 -7 -6 -6 -6 --------- Run | Yrd Mat Min Exi Min Mat Fac Was Fac Low Low Fac Was Fac Machines Accessed 26 | . . . 1 1 8 4 . . . 2 4 . 6 Terminals 9 | . . . . 1 4 1 . . . . . . 3 Fabricators 2 | . . . . . . . . . . . 1 . 1 Repair Stations 2 | . . . . . . 1 . . . . . . 1 Recycling Units 2 | . . . . . 1 1 . . . . . . . Scanalyzers 4 | . . . . . 2 . . . . . 1 . 1 Garrison Access 4 | . . . . . 1 1 . . . . 2 . . Total Hacks 99 | . . . 4 1 28 12 . . . 8 28 . 18 Successful 55 | . . . 4 1 10 3 . . . 8 19 . 10 Failed 44 | . . . . . 18 9 . . . . 9 . 8 Catastrophic 7 | . . . . . 3 2 . . . . 1 . 1 Database Lockouts . | . . . . . . . . . . . . . . Manual 6 | . . . . . 2 3 . . . . . . 1 Terminals 22 | . . . . 1 12 3 . . . . . . 6 Fabricators 9 | . . . . . . . . . . . 6 . 3 Repair Stations 7 | . . . . . . 5 . . . . . . 2 Recycling Units 6 | . . . . . 3 3 . . . . . . . Scanalyzers 36 | . . . . . 9 . . . . . 20 . 7 Garrison Access 7 | . . . . . 4 1 . . . . 2 . . Terminal Hacks 17 | . . . 4 1 3 . . . . 8 . . 1 Record 11 | . . . 4 . . . . . . 7 . . . Prototype ID Bank 1 | . . . . . . . . . . . . . 1 Open Door 1 | . . . . . . . . . . 1 . . . Alert Level 2 | . . . . . 2 . . . . . . . . Zone Layout 2 | . . . . 1 1 . . . . . . . . Fabricator Hacks 5 | . . . . . . . . . . . 2 . 3 Network Status 2 | . . . . . . . . . . . 1 . 1 Load Schematic 2 | . . . . . . . . . . . 1 . 1 Build 1 | . . . . . . . . . . . . . 1 Repair Station Hacks 4 | . . . . . . 2 . . . . . . 2 Scan Component 2 | . . . . . . 1 . . . . . . 1 Repair 2 | . . . . . . 1 . . . . . . 1 Recycling Unit Hacks 1 | . . . . . 1 . . . . . . . . Report Inventory 1 | . . . . . 1 . . . . . . . . Scanalyzer 24 | . . . . . 5 . . . . . 16 . 3 Insert Component 12 | . . . . . 3 . . . . . 7 . 2 Analyze 12 | . . . . . 2 . . . . . 9 . 1 Garrison Access Hacks 3 | . . . . . 1 1 . . . . 1 . . Seal Access 3 | . . . . . 1 1 . . . . 1 . . Unauthorized Hacks 1 | . . . . . . . . . . . . . 1 Terminals 1 | . . . . . . . . . . . . . 1 Botnet 1 | . . . . . . . . . . . . . 1 Fabricators . | . . . . . . . . . . . . . . Repair Stations . | . . . . . . . . . . . . . . Recycling Units . | . . . . . . . . . . . . . . Scanalyzers . | . . . . . . . . . . . . . . Garrison Access . | . . . . . . . . . . . . . . Data Cores Recovered . | . . . . . . . . . . . . . . Used . | . . . . . . . . . . . . . . Hacking Detections 19 | . . . . . 7 3 . . . . 3 . 6 Full Trace Events 8 | . . . . . 3 1 . . . . 1 . 3 Feedback Events . | . . . . . . . . . . . . . . Feedback Blocked . | . . . . . . . . . . . . . . Robot Schematics Acquired . | . . . . . . . . . . . . . . Robots Built . | . . . . . . . . . . . . . . Authchips . | . . . . . . . . . . . . . . Time . | . . . . . . . . . . . . . . Total Robot Build Rating . | . . . . . . . . . . . . . . Part Schematics Acquired 8 | . . . . . . . . . . . 7 . 1 Parts Built 1 | . . . . . . . . . . . . . 1 Authchips . | . . . . . . . . . . . . . . Time 204 | . . . . . . . . . . . . . 204 Total Part Build Rating 8 | . . . . . . . . . . . . . 8 Parts Repaired 2 | . . . . . . 1 . . . . . . 1 Time 192 | . . . . . . 136 . . . . . . 56 Parts Recycled . | . . . . . . . . . . . . . . Recycled Matter . | . . . . . . . . . . . . . . Retrieved Matter . | . . . . . . . . . . . . . . Retrieved Components . | . . . . . . . . . . . . . . Parts Scanalyzed 9 | . . . . . 1 . . . . . 6 . 2 Part Schematics Acquired 8 | . . . . . . . . . . . 7 . 1 Parts Damaged 2 | . . . . . 1 . . . . . 1 . . Bothacking | -11 -10 -10 -10 -9 -8 -7 -7 -7 -7 -7 -6 -6 -6 ------------ Run | Yrd Mat Min Exi Min Mat Fac Was Fac Low Low Fac Was Fac Used RIF Installer . | . . . . . . . . . . . . . . Robots Hacked . | . . . . . . . . . . . . . . Non-combat . | . . . . . . . . . . . . . . Combat . | . . . . . . . . . . . . . . Robot Hacks Applied . | . . . . . . . . . . . . . . Relay Couplers Released . | . . . . . . . . . . . . . . Fabnet Peak Effective % . | . . . . . . . . . . . . . . Robots Rewired . | . . . . . . . . . . . . . . Allies Hacked . | . . . . . . . . . . . . . . Hacks Repelled . | . . . . . . . . . . . . . . Allies | -11 -10 -10 -10 -9 -8 -7 -7 -7 -7 -7 -6 -6 -6 -------- Run | Yrd Mat Min Exi Min Mat Fac Was Fac Low Low Fac Was Fac Total Allies 19 | . . . . . . . 19 . . . . . . Largest Group 18 | . . . . . . . 18 16 14 10 . . . Highest-Rated Group 461 | . . . . . . . 461 412 384 278 . . . Highest-Rated Ally 35 | . . . . . . . 35 35 35 31 . . . Total Orders 3 | . . . . . . . . . . . 3 . . EXPLORE 3 | . . . . . . . . . . . 3 . . Ally Attacks 253 | . . . . . . . 113 5 103 32 . . . Total Damage 7073 | . . . . . . . 4503 545 1667 358 . . . Kills 28 | . . . . . . . 8 4 13 3 . . . Allies Corrupted 3 | . . . . . . . . . . 3 . . . Allies Melted . | . . . . . . . . . . . . . . Intel | -11 -10 -10 -10 -9 -8 -7 -7 -7 -7 -7 -6 -6 -6 ------- Run | Yrd Mat Min Exi Min Mat Fac Was Fac Low Low Fac Was Fac Robot Analysis Total . | . . . . . . . . . . . . . . Derelict Logs Recovered 3 | . . 1 . . . . . . . 2 . . . Drone Launches 3 | . . . . . . . . . . . 3 . . Drone Recoveries 1 | . . . . . . . . . . . 1 . . Exploration | -11 -10 -10 -10 -9 -8 -7 -7 -7 -7 -7 -6 -6 -6 ------------- Run | Yrd Mat Min Exi Min Mat Fac Was Fac Low Low Fac Was Fac Turns Passed 9465 | 69 123 536 458 168 1578 1257 451 58 325 1296 825 727 1594 Spaces Moved 5338 | 46 101 384 277 75 795 691 344 48 250 826 530 375 596 Core 26 | 4 . . . . . . . . . . 22 . . Treads 894 | . . . . . . . . . . . . 298 596 Legs 3876 | 42 101 384 277 75 705 339 344 48 250 826 485 . . Wheels 442 | . . . . . 90 352 . . . . . . . Hover . | . . . . . . . . . . . . . . Flight 100 | . . . . . . . . . . . 23 77 . Fastest Speed 35 | 50 120 120 120 190 95 80 122 122 122 120 35 35 160 Average Speed 131 | 113 120 120 165 190 140 121 122 122 122 127 102 134 160 Slowest Speed 470 | 120 120 120 190 190 190 260 123 122 125 470 330 160 160 Overloaded Moves . | . . . . . . . . . . . . . . Propulsion Burnouts . | . . . . . . . . . . . . . . Robots Hopped 1 | . . . . . . . . . . . 1 . . Cave-ins Triggered . | . . . . . . . . . . . . . . Exploration Rate (%) 43 | 3 16 69 65 33 46 16 94 2 58 75 23 91 15 Regions Visited 13 Branch Regions 5 Pre-discovered Areas 2 | . . . 1 . . . . . . 1 . . . Known Exits Taken 4 | . . . . . 1 . . 1 1 1 . . . Unknown Exits Taken 5 | 1 1 1 1 1 . . . . . . . . . Scrap Searched 5 | . . 1 . . . . . . 1 3 . . . Spaces Dug 4 | . . . . . 2 2 . . . . . . . Terrain Destroyed 103 | . . . . 3 17 41 . . . . 39 . 3 Melee 4 | . . . . . 2 2 . . . . . . . Projectile 8 | . . . . 3 2 . . . . . . . 3 AOE 91 | . . . . . 13 39 . . . . 39 . . Terrain Rammed . | . . . . . . . . . . . . . . Walls Destroyed . | . . . . . . . . . . . . . . Machines Disabled . | . . . . . . . . . . . . . . Actions | -11 -10 -10 -10 -9 -8 -7 -7 -7 -7 -7 -6 -6 -6 --------- Run | Yrd Mat Min Exi Min Mat Fac Was Fac Low Low Fac Was Fac Total 6965 | 55 103 422 278 85 1066 980 374 47 268 971 716 584 1016 Wait 799 | . . 3 . 1 78 144 10 . 9 65 75 170 244 Move 5325 | 45 100 383 276 74 794 691 343 47 249 825 528 374 596 Hop 1 | . . . . . . . . . . . 1 . . Pick Up 90 | 1 3 5 . 1 20 16 6 . 2 1 14 3 18 Fast Attach 75 | 7 . . . . 17 14 2 . . 5 5 17 8 Attach 44 | . . 1 . . 9 5 2 . . 6 12 1 8 Detach 23 | . . 1 . . 7 3 2 . . 2 1 . 7 Swap 65 | . . 5 1 . 10 20 2 . 4 4 14 1 4 Drop 82 | . . 3 1 . 22 15 4 . 3 1 12 12 9 Fire 449 | 2 . 21 . 9 107 65 3 . 1 62 53 6 120 Melee 8 | . . . . . 2 6 . . . . . . . Ram . | . . . . . . . . . . . . . . Kick 2 | . . . . . . 1 . . . . 1 . . Crush 2 | . . . . . . . . . . . . . 2 Escape Stasis . | . . . . . . . . . . . . . . Rewire . | . . . . . . . . . . . . . . Trap . | . . . . . . . . . . . . . . Miscellaneous . | . . . . . . . . . . . . . . Route ------- -11/Scrapyard -10/Materials (discovered 2 exits: [*Min] / [Sub]) -10/Mines (discovered 2 exits: [*Mat] / *Exi) -10/Exiles (discovered 2 exits: *Min x2) -9/Mines -8/Materials -7/Factory (discovered 2 exits: *Fac x2) -7/Waste -7/Factory -7/Lower Caves -7/Lower Caves (discovered 2 exits: *Fac / *Zio) -6/Factory (discovered 5 exits: *Fac x4 / [*Low]) -6/Waste -6/Factory History --------- Turn | Location | Event 23 | -11/Scrapyard | Discovered new exit (range 16) 70 | -11/Scrapyard | Entered Materials 78 | -10/Materials | Discovered new exit (range 15) 133 | -10/Materials | Discovered new exit (range 8) 193 | -10/Materials | Entered Mines 265 | -10/Mines | Found a damaged Exp. Sensor Array with a note attached 270 | -10/Mines | Found Prototype Device 271 | -10/Mines | Met a Derelict bent on vengeance 271 | -10/Mines | Identified Exp. Sensor Array 310 | -10/Mines | Build established: Mutant 338 | -10/Mines | Found DCF Scrap (13 items) 380 | -10/Mines | Discovered new exit (range 6) 567 | -10/Mines | A weapon hastily lodged in a ceiling crevice suddenly fell to the ground 722 | -10/Mines | Deemed a non-threat by the Exiles lab entrance 723 | -10/Mines | Discovered new exit (range 5) 729 | -10/Mines | Entered Exiles 746 | -10/Exiles | Discovered new exit (range 15) 786 | -10/Exiles | Met 8R-AWN 803 | -10/Exiles | Met EX-HEX 908 | -10/Exiles | Met EX-DEC 977 | -10/Exiles | Learned location of Zion (-7) 1053 | -10/Exiles | Met EX-BIN 1172 | -10/Exiles | Discovered new exit (range 10) 1187 | -10/Exiles | Entered Mines 1316 | -9/Mines | Discovered new exit (range 5) 1355 | -9/Mines | Entered Materials 1355 | -8/Materials | Evolved 4 slots: Propulsion x2, Utility x2 1842 | -8/Materials | Discovered new exit (range 3) 1848 | -8/Materials | Identified exit to Factory 2227 | -8/Materials | Build established: Scavenger-Mutant 2474 | -8/Materials | Lost 3 parts (2u1w) 2788 | -8/Materials | Lost 3 parts (2n1u) 2933 | -8/Materials | Entered Factory 2933 | -7/Factory | Evolved 2 slots: Utility x2 3048 | -7/Factory | Lost 3 parts (1p1n1u) 3293 | -7/Factory | Lost 3 parts (2n1u) 3405 | -7/Factory | Discovered new exit (range 19) 3423 | -7/Factory | Lost 3 parts (2n1w) 3591 | -7/Factory | Repaired Broken Exp. Sensor Array? 3732 | -7/Factory | Discovered new exit (range 6) 3758 | -7/Factory | Identified exit to Factory 4025 | -7/Factory | Build established: Scavenger-Assassin 4190 | -7/Factory | Sucked down chute 4190 | -7/Factory | Entered Waste 4213 | -7/Waste | Spotted C-40 Crusher 4233 | -7/Waste | Spotted C-40 Crusher 4247 | -7/Waste | Spotted C-40 Crusher 4265 | -7/Waste | Spotted C-40 Crusher 4291 | -7/Waste | Spotted C-40 Crusher 4298 | -7/Waste | Discovered new exit (range 13) 4329 | -7/Waste | Spotted C-40 Crusher 4360 | -7/Waste | Crushed by Compactor (1 part destroyed, 2 dropped) 4381 | -7/Waste | Warlord forces began an assault 4390 | -7/Waste | Allies destroyed C-40 Crusher 4393 | -7/Waste | Allies destroyed C-40 Crusher 4394 | -7/Waste | Allies destroyed C-40 Crusher 4400 | -7/Waste | Allies destroyed C-40 Crusher 4442 | -7/Waste | Lost 3 allies 4635 | -7/Waste | Identified exit to Factory 4641 | -7/Waste | Entered Factory 4641 | -7/Factory | Accompanied by 16 allies 4674 | -7/Factory | Discovered new exit (range 10) 4680 | -7/Factory | Build established: Scavenger-Skirmisher 4690 | -7/Factory | Identified exit to Lower Caves 4699 | -7/Factory | Entered Lower Caves 4699 | -7/Lower Caves | Accompanied by 14 allies 4954 | -7/Lower Caves | Lost 4 allies 4985 | -7/Lower Caves | Discovered new exit (range 15) 5013 | -7/Lower Caves | Identified exit to Lower Caves 5024 | -7/Lower Caves | Entered another Lower Caves area 5024 | -7/Lower Caves | Accompanied by 10 allies 5029 | -7/Lower Caves | Discovered exit to Factory (range 13) 5062 | -7/Lower Caves | Encountered a Warlord checkpoint 5120 | -7/Lower Caves | Attacked by a delusional Derelict stockpiling parts 5170 | -7/Lower Caves | Learned 4 Factory zone layouts 5258 | -7/Lower Caves | Build established: Skirmisher 5571 | -7/Lower Caves | P-60 Hacker assimilated allied DI-UG0(m) 5583 | -7/Lower Caves | Lost 7 allies 5676 | -7/Lower Caves | Learned Extension trap positions 5676 | -7/Lower Caves | Learned Research emergency access door positions 5676 | -7/Lower Caves | Learned Extension emergency access door positions 5676 | -7/Lower Caves | Learned Research security intel 5793 | -7/Lower Caves | Core integrity fell below 50% 5840 | -7/Lower Caves | Lost 5 parts (3n2u) 5894 | -7/Lower Caves | System corruption reached 10% 5989 | -7/Lower Caves | Discovered new exit (range 3) 5992 | -7/Lower Caves | Identified exit to Zion 6098 | -7/Lower Caves | Build established: Scavenger-Mutant 6161 | -7/Lower Caves | Learned location of 1 exit from Factory 6320 | -7/Lower Caves | Entered Factory 6320 | -6/Factory | Evolved 2 slots: Utility x2 6321 | -6/Factory | Identified exit to Factory 6525 | -6/Factory | Discovered exit to Factory (range 139) 6549 | -6/Factory | Discovered new exit (range 64) 6711 | -6/Factory | Lost 4 parts (3n1u) 6848 | -6/Factory | Discovered exit to Factory (range 16) 6984 | -6/Factory | Build established: Hacker-Mutant 7105 | -6/Factory | Cargo convoy interrupted 7105 | -6/Factory | Lost 5 parts (1p3u1w) 7121 | -6/Factory | Core integrity fell below 50% 7125 | -6/Factory | Released all parts (8) 7145 | -6/Factory | Manually triggered Chute Trap 7145 | -6/Factory | Sucked down chute 7145 | -6/Factory | Entered Waste 7145 | -6/Waste | The area was eerily silent 7156 | -6/Waste | Lost 11 parts (3n4u4w) 7200 | -6/Waste | Found Damper Plating 7439 | -6/Waste | Build established: Scavenger-Mutant 7560 | -6/Waste | Discovered new exit (range 16) 7872 | -6/Waste | Entered Factory 8709 | -6/Factory | Fabricated Exp. Sensor Array (x1) 8728 | -6/Factory | Core integrity fell below 20% 9345 | -6/Factory | Repaired Hvy. Treads 9466 | -6/Factory | Destroyed by Y-54 Guardian with Flak Gun Last Messages --------------- 09416_ Destroyed Gravmag System. 09425_ Destroyed Remote Datajack. 09427_ P-60 Hacker destroyed. 09435_ K-01 Serf collects debris. 09436_ K-01 Serf cleans the Fusion Modulator. 09441_ System corrupted: Component data lost. 09443_ K-01 Serf cleans the Fusion Modulator. 09451_ Fusion Modulator explodes. 09451_ Terminal disabled. 09451_ K-01 Serf destroyed. 09451_ K-01 Serf collects debris. 09452_ S-27 Virus destroyed. 09452_ K-01 Serf collects debris. 09457_ Destroyed Imp. Terrain Scanner. 09457_ K-01 Serf collects debris. 09459_ Hrd. Medium Armor Plating destroyed. 09460_ K-01 Serf collects debris. 09463_ Exp. Weapon Shielding destroyed. 09463_ K-01 Serf collects debris. 09466_ Adv. Heat Sink destroyed. Map ----- +----------------------------------------------------+ | # #??????????????????????????????????????? | | %# [ #??????????????????????????????????????? | | # #??????????????????????????????????????? | | # #??????????????????????????????????????? | | # #??????????????????????????????????????? | | #=! #??????????????????????????????????????? | | # [ #??????????????????????????????????????? | | + #??????????????????????????????????????? | | !# [ #??????????????????????????????????????? | | # #??????????????????????????????????????? | | # #???????????? ???????????????????????? | | # #?????????? ???????????????????????? | | # ! #?????????# R#####;#????????????????? | | # #?????????# A ??????????????? | | # #?????????# [% ???????????????? | | # #?????????# = k ???????????????? | | ##+######?????????# k ????????????????? | | #????????????### s ?????????????????? | | #####????????#;; ;ss#?????????????????? | | #????##### #?????????????????? | | ######;##; #?????????????????? | | !;k #?????????????????? | | ######### #?????????????????? | | #???????# #?????????????????? | | ##"T######???????# #?????????????????? | | ?#""#????????????#; @ !#?????????????????? | | ?####????????????#; #?????????????????? | | ?????????????????## !Y #?????????????????? | | ??????????????????# #?????????????????? | | ??????????????????# #????????????????? | | ??????????????????# ##????????????????? | | ??????????????????##############?????????????????? | | ?????????????????????????????????????????????????? | | ?????????????????????????????????????????????????? | | ?????????????????????????????????????????????????? | | ?????????????????????????????????????????????????? | | ?????????????????????????????????????????????????? | | ?????????????????????????????????????????????????? | | ?????????????????????????????????????????????????? | | ?????????????????????????????????????????????????? | | ?????????????????????????????????????????????????? | | ?????????????????????????????????????????????????? | | ?????????????????????????????????????????????????? | | ?????????????????????????????????????????????????? | | | | | | | | | | | | | +----------------------------------------------------+ Best States ------------- Heat Dissipation 65 Energy Generation 21 Energy Capacity 325 Matter Stores 300 Matter Capacity 300 Sight Range 23 Robot Scan Range 20 Terrain Scan Range 16 Terrain Scan Density 10 ECM Strength 2 Jamming Range 12 EM Shielding 2 Armor Coverage 2050 Resistance: EM 90 Weapon Shielding 90 Evasion (%) 63 Targeting Accuracy 12 Recoil Reduction 4 Offensive Hacking 11 Defensive Hacking 10 Item Schematics ----------------- Micro-nuke Launcher | -6/Factory | Scanalyzed Hvy. Beamcaster | -6/Factory | Scanalyzed Exp. Sensor Array | -6/Factory | Scanalyzed Aluminum Leg | -6/Factory | Scanalyzed Carbon-fiber Leg | -6/Factory | Scanalyzed Chainsword | -6/Factory | Scanalyzed Imp. Datajack | -6/Factory | Scanalyzed Dispersion Rifle | -6/Factory | Scanalyzed Robot Schematics ------------------ None Fabricated ------------ Exp. Sensor Array | x1 | -6/Factory Alien Tech Used ----------------- None Achievements -------------- None Challenges ------------ None Game ------ Seed MatterHeartLaser Manual? 0 Play Time 01:02:35 Cumulative 141.2 hours Start 2024.12.31 @ 22:31:23 End 2024.12.31 @ 23:39:07 Sessions 1 Manual Loads 0 Difficulty Rogue Special Mode None Game No. 161 Rogue 161 Adventurer 0 Explorer 0 Win Type - Total 3 Types 2/0/1/0/0/0/0/0/0 Lore% 62 Gallery% 68 Achievement% 52 Wizard Run 0 Options --------- Layout 0 ASCII 0 Keyboard 1 Movement Numpad Keybinds 0 Fullscreen 2 Font 18/SmallcapsGlow Map View 76x50 Zoom Use 0% Tactical HUD 1 Map Filters NONE Filters NONE Steam 1 RUN: d3e37f3b-bb99-4b5a-bb7f-85d7fa16aea6